Cogmind - Beta 13 @@@ ROGUE MODE // 2024.06.02 @ 19:14:03 Player: lurie Result: Self-destructed Performance ------------- Evolutions (2) 1000 Regions Visited (4) 800 Robots Destroyed (95) 475 Value Destroyed (2475) 2475 Prototype IDs (27) 540 Alien Tech Used (0) 0 Bonus (6) 6 TOTAL SCORE: 5296 Bonus ------- High Alert Combat Kills 6 Cogmind --------- Core Integrity 351/550 Matter 218/300 Energy 180/180 System Corruption 1% Temperature Cool (0) Movement Treading (240) Ox1 Location -8/Storage Parts ------- > --- POWER (1) -------- Meta Core > --- PROPULSION (4+1) - Improved Treads > --- UTILITY (4+1) ---- Large Storage Unit Hacking Suite Hacking Suite Hacking Suite (+) Makeshift System Shield > --- WEAPON (2+1) ----- Enhanced Autogun Enhanced Autogun (+) Heavy Flail > --- INVENTORY (15) --- Gravmag System Gravmag System Gravmag System Gravmag System Trap Scanner Improved Sensor Array Improved Signal Interpreter Reactive Plating Hacking Suite System Shield Powered Cannon Enhanced Autogun Missile Launcher Peak State ------------ > --- POWER ------------ Meta Core > --- PROPULSION ------- Gravmag System Gravmag System Gravmag System Gravmag System > --- UTILITY ---------- Large Storage Unit Hacking Suite Hacking Suite Hacking Suite Makeshift System Shield > --- WEAPON ----------- Enhanced Autogun Enhanced Autogun > --- INVENTORY -------- Improved Treads Improved Treads Improved Treads Trap Scanner Improved Signal Interpreter Hardened Light Armor Plating Reactive Plating Hacking Suite System Shield Powered Cannon Missile Launcher Heavy Flail Greatsword [Rating: 56] Favorites ----------- Power Light Ion Engine Engine Light Ion Engine Power Core Meta Core Propulsion Light Treads Treads Light Treads Leg Improved Aluminum Leg Wheel Subdweller Monowheel Hover Unit Gravmag System Flight Unit Improved VTOL Module Utility Hacking Suite Device Structural Scanner Storage Small Storage Unit Hackware Hacking Suite Protection Hardened Light Armor Plating Weapon Assault Rifle Energy Gun Heavy Particle Gun Energy Cannon Advanced Beam Cannon Ballistic Gun Assault Rifle Ballistic Cannon Slug Cannon Launcher Grenade Launcher Impact Weapon Hammer Build | -11 -10 -10 -8 -8 ------- Run | Yrd Mat Sub Mat Sto Slots Evolved 4 | . . . 4 . Power . | . . . . . Propulsion 2 | . . . 2 . Utility 2 | . . . 2 . Weapon . | . . . . . Parts Attached 101 | 6 17 33 34 11 Power 9 | 1 2 3 3 . Engine 8 | 1 2 3 2 . Core 1 | . . . 1 . Reactor . | . . . . . Propulsion 31 | 2 3 9 13 4 Treads 16 | 2 . 2 8 4 Leg 3 | . 2 1 . . Wheel 6 | . 1 5 . . Hover 5 | . . 1 4 . Flight 1 | . . . 1 . Utility 14 | 1 2 1 10 . Device 2 | . 2 . . . Storage 3 | 1 . . 2 . Processor . | . . . . . Hackware 4 | . . . 4 . Protection 5 | . . 1 4 . Artifact . | . . . . . Weapon 47 | 2 10 20 8 7 Energy Gun 3 | 1 . 1 1 . Energy Cannon 1 | . . . 1 . Ballistic Gun 28 | 1 7 12 4 4 Ballistic Cannon 1 | . . 1 . . Launcher 4 | . 2 1 . 1 Special Weapon . | . . . . . Impact Weapon 10 | . 1 5 2 2 Slashing Weapon . | . . . . . Piercing Weapon . | . . . . . Special Melee Weapon . | . . . . . Unidentified Prototypes 4 | . . . 4 . Parts Lost 11 | . 2 6 . 3 Power 2 | . 1 1 . . Propulsion 6 | . 1 2 . 3 Utility 1 | . . 1 . . Weapon 2 | . . 2 . . Highest Loss Streak 3 | . 2 3 . 2 To Critical Strikes . | . . . . . Average Slot Usage (%) 93 | . 91 96 96 79 Engine 9 | . 13 11 8 . Treads 19 | . 11 8 32 18 Leg 5 | . 14 8 . . Wheel 2 | . 1 7 . . Hover 1 | . . 2 1 4 Device 3 | . 7 4 . . Storage 11 | . 14 14 8 7 Hackware 9 | . . . 16 28 Protection 6 | . . 8 10 . Energy Gun 3 | . 5 . 3 . Ballistic Gun 18 | . 21 24 13 13 Naked Turns . | . . . . . Heaviest Build 65 | 14 14 24 65 32 Greatest Support 92 | 40 40 40 82 92 Greatest Overweight (x) 6 | 1 4 6 6 1 Average Overweight (x) . | . . . . . Largest Inventory Capacity 20 | 8 8 8 20 15 Average Capacity 11 | 7 8 8 14 15 Most Carried 17 | 1 8 8 17 15 Average Carried 9 | . 6 7 11 14 Final Capacity 15 | 8 8 8 15 15 Final Carried 14 | 1 8 8 12 14 Class Distribution -------------------- 43% | Mutant 34% | Hacker-Mutant 13% | Derelict-Mutant 8% | Scavenger-Mutant Dominant Class ---------------- Mutant | -10/Materials Mutant | -10/Subcaves Hacker-Mutant | -8/Materials Hacker-Mutant | -8/Storage Resources | -11 -10 -10 -8 -8 ----------- Run | Yrd Mat Sub Mat Sto Matter Collected 2940 | 287 506 582 791 774 Remotely . | . . . . . Salvage Created 3578 | 104 941 369 1348 816 Parts 216 | 4 74 34 63 41 Haulers Intercepted 9 | . 2 . 5 2 Recyclers Shooed 3 | . . . 2 1 Parts Field Recycled . | . . . . . Retrieved Matter . | . . . . . Parts Self-Destructed 11 | . . 11 . . Prevented . | . . . . . Kills | -11 -10 -10 -8 -8 ------- Run | Yrd Mat Sub Mat Sto Combat Hostiles Destroyed 60 | . 25 11 13 11 Guns 52 | . 20 10 12 10 AOE 8 | . 5 1 1 1 Classes Destroyed 13 | 2 5 1 2 3 Worker 4 | 2 . . 1 1 Builder 5 | . 2 . 2 1 Hauler 9 | . 2 . 5 2 Recycler 7 | 1 . . 5 1 Mechanic 1 | . . . . 1 Operator 3 | . . . 3 . Watcher 6 | . 3 . 1 2 Swarmer 11 | . 9 2 . . Grunt 28 | . 16 . 9 3 Brawler 1 | . . . . 1 Sentry 10 | . . . 4 6 Hunter 1 | . . . . 1 Subdweller 9 | . . 9 . . Best Kill Streak 5 | 3 5 3 3 3 Combat Bots Only 5 | . 5 3 2 3 Max Kills in Single Turn 2 | 1 2 1 1 1 Gunslinging . | . . . . . Exploded 2 | . 2 1 1 1 Melee . | . . . . . Uniques/NPCs Destroyed . | . . . . . Combat | -11 -10 -10 -8 -8 -------- Run | Yrd Mat Sub Mat Sto Hostile Shots Fired 325 | . 93 76 76 80 Missed 107 | . 24 33 21 29 Damage Taken 3284 | . 675 915 875 819 Core 332 | . 66 67 107 92 Absorbed by Shields . | . . . . . Regen/Repaired (Parts) 2 | . . . 2 . Core Remaining (%) 73 | 100 . 46 . . Volleys Fired 320 | 9 84 51 87 89 Largest 2 | 2 2 2 2 2 Hottest 88 | 70 70 65 88 61 Shots Fired 619 | 18 166 101 156 178 Gun 608 | 18 162 98 156 174 Cannon . | . . . . . Launcher 11 | . 4 3 . 4 Special . | . . . . . Kinetic 509 | 9 102 94 130 174 Thermal 95 | 9 60 . 26 . Explosive 11 | . 4 3 . 4 Electromagnetic 4 | . . 4 . . Robot Hit Streak 17 | 4 10 17 16 15 Robot Miss Streak 8 | 3 6 6 8 8 Penetration Max . | . . . . . Secondary Targets 6 | . 3 3 . . Max Gunslinging Chain 1 | . 1 1 . . Shots Hit Robots 386 | 8 90 80 88 120 Core Hits 153 | 4 49 22 42 36 Critical Kills 1 | . . . . 1 Critical Parts Destroyed 2 | . . . 1 1 Critical Strikes 8 | 1 4 . 1 2 Burn 5 | 1 4 . . . Destroy 2 | . . . . 2 Smash 1 | . . . 1 . Melee Attacks 21 | . 3 8 5 5 Impact 21 | . 3 8 5 5 Slashing . | . . . . . Piercing . | . . . . . Sneak Attacks 3 | . . . 3 . Combat Hostiles . | . . . . . Follow-up Attacks . | . . . . . Damage Inflicted 7530 | 102 1486 1318 2217 2407 Guns 6263 | 102 1240 1158 1709 2054 Cannons . | . . . . . Explosions 957 | . 246 160 198 353 Melee 310 | . . . 310 . Ramming . | . . . . . Kinetic 5259 | 65 726 1101 1313 2054 Thermal 947 | 37 514 . 396 . Explosive 957 | . 246 160 198 353 Electromagnetic 57 | . . 57 . . Impact 310 | . . . 310 . Slashing . | . . . . . Piercing . | . . . . . Highest Corruption 1 | . . . 1 1 Average Corruption 1 | . . . 1 1 Corruption Purged . | . . . . . Corruption Blocked . | . . . . . Effects 13 | . . . 8 5 Message Errors 4 | . . . 3 1 Matter Fused 3 | . . . 1 2 Heat Flow Errors 1 | . . . 1 . Energy Discharges 2 | . . . 1 1 Parts Fused 1 | . . . 1 . Data Loss (major) 1 | . . . . 1 Misfires 1 | . . . 1 . Overload Shots . | . . . . . Overflow Damage 156 | . . . 156 . Projectiles . | . . . . . Explosions . | . . . . . Melee 156 | . . . 156 . Knockbacks . | . . . . . Impact . | . . . . . Kinetic . | . . . . . Secondary . | . . . . . Self-Inflicted Damage 10 | . . 7 . 3 Shots 2 | . . 1 . 1 Rammed . | . . . . . Targets Rammed . | . . . . . Kicked . | . . . . . Crushed . | . . . . . Highest Temperature 412 | 36 164 3 412 52 Average Temperature 66 | 14 46 3 102 10 Received Heat Transfer 993 | . 240 105 441 207 Effects 4 | . . . 4 . Energy Bleed 1 | . . . 1 . Interference 3 | . . . 3 . Siege Activations . | . . . . . Robots Corrupted . | . . . . . Combat Hostiles . | . . . . . Parts Fried 6 | . . 1 5 . Impact Corruptions 3 | . . . 3 . Robots Melted . | . . . . . Combat Hostiles . | . . . . . Parts Melted 3 | . 2 . 1 . Heat Transferred 2701 | 185 1739 . 777 . Parts Sabotaged . | . . . . . Parts Stolen . | . . . . . Parts Stripped . | . . . . . Power Chain Reactions . | . . . . . Alert | -11 -10 -10 -8 -8 ------- Run | Yrd Mat Sub Mat Sto Peak Influence 455 | 15 455 . 152 365 Initial 25 | . 9 . . 25 Average 139 | 2 282 . 44 183 Maximum Alert Level 2 | . 2 . . 1 Low Security (%) 69 | 100 20 . 100 64 Level 1 27 | . 71 . . 35 Level 2 2 | . 8 . . . Level 3 . | . . . . . Level 4 . | . . . . . Level 5 . | . . . . . High Security . | . . . . . Max Security . | . . . . . Squads Dispatched 16 | . 7 . 9 . Investigation 8 | . 7 . 1 . Extermination . | . . . . . Reinforcement 4 | . . . 4 . Assault . | . . . . . Garrison 4 | . . . 4 . Intercept . | . . . . . Searches Triggered . | . . . . . Construction Impeded . | . . . . . Haulers Reinforced . | . . . . . Active Scanning Responses . | . . . . . Cargo Convoy Interrupts . | . . . . . Stealth | -11 -10 -10 -8 -8 --------- Run | Yrd Mat Sub Mat Sto Distress Signals 6 | . 2 . 2 2 Communications Jammed . | . . . . . Distress Signals . | . . . . . Times Spotted 86 | . 36 13 17 20 Peak Tracking Total 5 | . 5 4 3 4 Tactical Retreats 2 | . 2 . . . Traps | -11 -10 -10 -8 -8 ------- Run | Yrd Mat Sub Mat Sto Traps Triggered 6 | . 3 1 2 . Indirectly . | . . . . . Trap Hack Attempts . | . . . . . Triggered . | . . . . . Disarmed . | . . . . . Reprogrammed . | . . . . . Reused . | . . . . . Traps Extracted . | . . . . . Installed . | . . . . . Triggered . | . . . . . Machines | -11 -10 -10 -8 -8 ---------- Run | Yrd Mat Sub Mat Sto Machines Disabled 9 | . . 1 5 3 Max in Single Turn 2 | . . 1 2 1 Garrison Access 1 | . . . 1 . Machines Repaired . | . . . . . Machines Dismantled . | . . . . . Machines Sabotaged . | . . . . . Overloaded Fab Kills . | . . . . . Hacking | -11 -10 -10 -8 -8 --------- Run | Yrd Mat Sub Mat Sto Machines Accessed 30 | . 10 2 14 4 Terminals 19 | . 8 . 8 3 Fabricators . | . . . . . Repair Stations 2 | . . . 2 . Recycling Units 5 | . 2 . 2 1 Scanalyzers 1 | . . . 1 . Garrison Access 1 | . . . 1 . Total Hacks 104 | . 37 2 54 11 Successful 57 | . 18 2 30 7 Failed 45 | . 18 . 23 4 Catastrophic 6 | . 3 . 3 . Database Lockouts 2 | . 1 . 1 . Manual 59 | . 27 . 27 5 Terminals 86 | . 33 . 44 9 Fabricators . | . . . . . Repair Stations 4 | . . . 4 . Recycling Units 9 | . 4 . 3 2 Scanalyzers 2 | . . . 2 . Garrison Access 1 | . . . 1 . Terminal Hacks 39 | . 12 2 19 6 Record 1 | . . 1 . . Part Schematic 1 | . . . . 1 Robot Analysis 8 | . 6 . 2 . Prototype ID Bank 10 | . 4 . 6 . Open Door 2 | . . . . 2 Terminal Index 1 | . 1 . . . Alert Level 1 | . . . 1 . Unreport Threat 6 | . . . 4 2 Locate Traps 3 | . 1 . 1 1 Recall Investigation 1 | . . . 1 . Recall Reinforcements 1 | . . . 1 . Hauler Manifests 1 | . . . 1 . Zone Layout 2 | . . . 2 . Derelict Proto ID Bank 1 | . . 1 . . Fabricator Hacks . | . . . . . Repair Station Hacks 2 | . . . 2 . Scan Component 1 | . . . 1 . Repair 1 | . . . 1 . Recycling Unit Hacks 4 | . 1 . 2 1 Report Inventory 4 | . 1 . 2 1 Scanalyzer 2 | . . . 2 . Insert Component 1 | . . . 1 . Analyze 1 | . . . 1 . Garrison Access Hacks 1 | . . . 1 . Seal Access 1 | . . . 1 . Unauthorized Hacks 9 | . 5 . 4 . Terminals 8 | . 5 . 3 . Assimilate 1 | . 1 . . . Botnet 6 | . 3 . 3 . Operators 1 | . 1 . . . Fabricators . | . . . . . Repair Stations . | . . . . . Recycling Units 1 | . . . 1 . Reject 1 | . . . 1 . Scanalyzers . | . . . . . Garrison Access . | . . . . . Data Cores Recovered . | . . . . . Used . | . . . . . Hacking Detections 21 | . 9 . 11 1 Full Trace Events 6 | . 5 . 1 . Feedback Events . | . . . . . Feedback Blocked . | . . . . . Robot Schematics Acquired . | . . . . . Robots Built . | . . . . . Authchips . | . . . . . Time . | . . . . . Total Robot Build Rating . | . . . . . Part Schematics Acquired 2 | . . . 1 1 Parts Built . | . . . . . Authchips . | . . . . . Time . | . . . . . Total Part Build Rating . | . . . . . Parts Repaired 1 | . . . 1 . Time 38 | . . . 38 . Parts Recycled . | . . . . . Recycled Matter . | . . . . . Retrieved Matter . | . . . . . Retrieved Components . | . . . . . Parts Scanalyzed 1 | . . . 1 . Part Schematics Acquired 1 | . . . 1 . Parts Damaged . | . . . . . Bothacking | -11 -10 -10 -8 -8 ------------ Run | Yrd Mat Sub Mat Sto Used RIF Installer . | . . . . . Robots Hacked . | . . . . . Non-combat . | . . . . . Combat . | . . . . . Robot Hacks Applied . | . . . . . Relay Couplers Released . | . . . . . Fabnet Peak Effective % . | . . . . . Robots Rewired . | . . . . . Allies Hacked . | . . . . . Hacks Repelled . | . . . . . Allies | -11 -10 -10 -8 -8 -------- Run | Yrd Mat Sub Mat Sto Total Allies 1 | . 1 . . . Largest Group 1 | . 1 1 . . Highest-Rated Group 10 | . 10 10 . . Highest-Rated Ally 10 | . 10 10 . . Total Orders . | . . . . . Ally Attacks . | . . . . . Total Damage . | . . . . . Kills . | . . . . . Allies Corrupted . | . . . . . Allies Melted . | . . . . . Intel | -11 -10 -10 -8 -8 ------- Run | Yrd Mat Sub Mat Sto Robot Analysis Total 8 | . 6 . 2 . Derelict Logs Recovered 2 | . . 2 . . Drone Launches . | . . . . . Drone Recoveries . | . . . . . Exploration | -11 -10 -10 -8 -8 ------------- Run | Yrd Mat Sub Mat Sto Turns Passed 7221 | 117 1807 1760 2860 677 Spaces Moved 4285 | 54 1150 1219 1571 291 Core 11 | 6 1 3 1 . Treads 1973 | 48 293 181 1284 167 Legs 1120 | . 688 432 . . Wheels 771 | . 168 603 . . Hover 410 | . . . 286 124 Flight . | . . . . . Fastest Speed 48 | 50 80 110 48 48 Average Speed 129 | 149 126 124 137 118 Slowest Speed 350 | 160 250 350 350 240 Overloaded Moves . | . . . . . Propulsion Burnouts . | . . . . . Robots Hopped . | . . . . . Cave-ins Triggered . | . . . . . Exploration Rate (%) 60 | 5 100 62 94 42 Regions Visited 4 Branch Regions 2 Pre-discovered Areas 1 | . . 1 . . Known Exits Taken . | . . . . . Unknown Exits Taken 4 | 1 1 1 1 . Scrap Searched 14 | . . 14 . . Spaces Dug 4 | . 1 . 3 . Terrain Destroyed 105 | . 32 14 28 31 Melee 3 | . 1 . 2 . Projectile 9 | . . . 9 . AOE 93 | . 31 14 17 31 Terrain Rammed . | . . . . . Walls Destroyed . | . . . . . Machines Disabled . | . . . . . Actions | -11 -10 -10 -8 -8 --------- Run | Yrd Mat Sub Mat Sto Total 5366 | 69 1324 1344 2129 500 Wait 520 | . 53 4 366 97 Move 4281 | 53 1149 1218 1570 291 Hop . | . . . . . Pick Up 52 | 1 10 10 26 5 Fast Attach 41 | 6 6 10 18 1 Attach 8 | . 1 3 4 . Detach 1 | . 1 . . . Swap 52 | . 10 20 12 10 Drop 70 | . 7 20 41 2 Fire 320 | 9 84 51 87 89 Melee 21 | . 3 8 5 5 Ram . | . . . . . Kick . | . . . . . Crush . | . . . . . Escape Stasis . | . . . . . Rewire . | . . . . . Trap . | . . . . . Miscellaneous . | . . . . . Route ------- -11/Scrapyard -10/Materials (discovered 5 exits: [*Mat x3] / [*Min] / *Sub) -10/Subcaves -8/Materials (discovered 4 exits: [*Fac x3] / *Sto) -8/Storage History --------- Turn | Location | Event 16 | -11/Scrapyard | Discovered new exit (range 14) 118 | -11/Scrapyard | Entered Materials 317 | -10/Materials | Build established: Mutant 734 | -10/Materials | Discovered new exit (range 15) 841 | -10/Materials | Discovered new exit (range 7) 1082 | -10/Materials | Discovered new exit (range 8) 1139 | -10/Materials | Central database locked down 1238 | -10/Materials | Discovered new exit (range 3) 1909 | -10/Materials | Discovered new exit (range 7) 1925 | -10/Materials | Entered Subcaves 1925 | -10/Subcaves | Accompanied by 1 ally 1942 | -10/Subcaves | Shifting Twisted Machinery released Sub. Monowheel 2008 | -10/Subcaves | Shifting Twisted Machinery released Sub. Power Source 2127 | -10/Subcaves | Learned 2 Materials zone layouts 2259 | -10/Subcaves | Learned Materials security intel 2275 | -10/Subcaves | A Subdweller sparked back to life 2312 | -10/Subcaves | Core integrity fell below 50% 2348 | -10/Subcaves | Lost 3 parts (2n1w) 2352 | -10/Subcaves | Found Prototype Energy Cannon 2638 | -10/Subcaves | A swath of the cavern ceiling suddenly collapsed 2730 | -10/Subcaves | Discovered new exit (range 3) 2737 | -10/Subcaves | Visited Clippyterm 3032 | -10/Subcaves | Learned location of Zion (-7) 3032 | -10/Subcaves | Met a Zionite searching for "candidates" 3047 | -10/Subcaves | Shifting Twisted Machinery released Sub. Shrapnel Launcher 3088 | -10/Subcaves | Disturbed a concealed Subdweller 3231 | -10/Subcaves | Shifting Twisted Machinery released Shrapnel Trap 3371 | -10/Subcaves | Visited 4L-MR0's lab 3376 | -10/Subcaves | Identified Powered Cannon 3396 | -10/Subcaves | Found Meta Core 3685 | -10/Subcaves | Entered Materials 3685 | -8/Materials | Evolved 4 slots: Propulsion x2, Utility x2 3735 | -8/Materials | Build established: Derelict-Mutant 3790 | -8/Materials | Garrison activated, responded to threat 4246 | -8/Materials | Garrison activated, responded to threat 4251 | -8/Materials | Central database locked down 4658 | -8/Materials | Build established: Scavenger-Mutant 4658 | -8/Materials | Discovered new exit (range 10) 5257 | -8/Materials | Build established: Hacker-Mutant 5315 | -8/Materials | Repaired Hacking Suite 5452 | -8/Materials | Discovered new exit (range 8) 5543 | -8/Materials | Met 7R-MNS 5654 | -8/Materials | Discovered new exit (range 12) 6047 | -8/Materials | Discovered new exit (range 16) 6362 | -8/Materials | Attached Meta Core, gained temporary slots: Propulsion, Utility, Weapon 6545 | -8/Materials | Entered Storage 7222 | -8/Storage | Self-destructed Last Messages --------------- 07166_ U-05 Engineer lays Concrete. 07169_ K-01 Serf collects debris. 07171_ U-05 Engineer lays Concrete. 07171_ Acquired 60 matter. 07173_ U-05 Engineer lays Concrete. 07173_ U-05 Engineer builds a Wall. 07177_ K-01 Serf collects debris. 07179_ U-05 Engineer builds a Wall. 07182_ K-01 Serf collects debris. 07183_ U-05 Engineer builds a Door. 07186_ U-05 Engineer builds a Wall. 07188_ Acquired 9 matter. 07190_ Acquired 36 matter. 07191_ U-05 Engineer builds a Wall. 07199_ U-05 Engineer lays Concrete. 07202_ U-05 Engineer builds a Wall. 07203_ Storage Shell breached. 07206_ U-05 Engineer lays Concrete. 07208_ U-05 Engineer builds a Wall. 07220_ Acquired Enh. Autogun. Map ----- +----------------------------------------------------+ | ??????????????#####???????????????????????????? | | ??????????????#"""#???????????????????????????? | | ??????????????#"Y"#???????????????????????????? | | ???????????####" "####????????????????????????? | | ?????????### ###??????????????????????? | | ##???????#"" """#?????????????????????? | | #???????#"T """ """ R"#?????????????????????? | | #???????#"" """ """ """#?????????????????????? | | #???????### """ """ ####?????????????????????? | | #????????# #????????????????????????? | | +????????## #????????????????????????? | | ^#?????????# #?????##?????????????????? | | #?????????#####+########## #?????????????????? | | ############## + !!] #?????????????????? | | ## # # !]] #?????????????????? | | ## ! + # !]] #?????????????????? | | # # # #?????????????????? | | # + " ! #?????????????????? | | + # # #?????????????????? | | # # # ! #?????????????????? | | # # # #?????????????????? | | ############### [###########?????????????????? | | ???# * [ # # ?????????????????????? | | ???## ## +?????????????????? | | ??""" + """" #?????????????????? | | ??"R ## ""[@"???????????????????? | | ??""" # ## """]="???????????????????? | | ???## """"" # ## "[["""???????????????????? | | ????# """"" # ## [*"?????????????????????? | | ??????""""" # """"?????????????????????? | | ???????######## ???????????????????? | | ?????????????## ##########??????????????????? | | ??????????????# #???????????????????????????? | | ????????????? #???????????????????????????? | | ??????????? #???????????????????????????? | | ?????????? ???????????????????????????? | | ?????????##########???????????????????????????? | | ??????????????????????????????????????????????? | | ??????????????????????????????????????????????? | | ??????????????????????????????????????????????? | | ??????????????????????????????????????????????? | | ??????????????????????????????????????????????? | | ??????????????????????????????????????????????? | | ??????????????????????????????????????????????? | | ??????????????????????????????????????????????? | | ??????????????????????????????????????????????? | | ??????????????????????????????????????????????? | | ??????????????????????????????????????????????? | | ??????????????????????????????????????????????? | | ??????????????????????????????????????????????? | +----------------------------------------------------+ Best States ------------- Heat Dissipation 47 Energy Generation 17 Energy Capacity 280 Matter Stores 300 Matter Capacity 300 Sight Range 16 Terrain Scan Density 10 Armor Coverage 400 Resistance: KI 20 Evasion (%) 55 Recoil Reduction 4 Offensive Hacking 30 Defensive Hacking 11 Item Schematics ----------------- Hacking Suite | -8/Materials | Scanalyzed Shock Absorption System | -8/Storage | Hacked Robot Schematics ------------------ None Fabricated ------------ Nothing Alien Tech Used ----------------- None Achievements -------------- None Challenges ------------ None Game ------ Seed BiocellEnhancedShield Manual? 0 Play Time 01:10:26 Cumulative 123.7 hours Start 2024.06.02 @ 14:55:38 End 2024.06.02 @ 19:14:03 Sessions 3 Manual Loads 0 Difficulty Rogue Special Mode None Game No. 63 Rogue 63 Adventurer 0 Explorer 0 Win Type - Total 0 Types 0/0/0/0/0/0/0/0/0 Lore% 52 Gallery% 58 Achievement% 45 Wizard Run 0 Options --------- Layout 2 ASCII 0 Keyboard 0 Movement Mouse Keybinds 0 Fullscreen 1 Font 32/SmallcapsGlow Map View 50x44 Zoom Use 0% Tactical HUD 1 Map Filters NONE Filters NONE Steam 1 RUN: d9472072-1efb-4b30-a536-ef0bd21f6f27